Workbook

Sheet Officer
A1: Buy back cost calculator - Officer
B2: Scheme Year
B3: 2014/15 | C3: 2015/16 | D3: 2016/17 | E3: 2017/18 | F3: 2018/19 | G3: 2019/20 | H3: 2020/21 | I3: 2021/22
A4: Dates employed during scheme year From | B4: 2014-04-01 | C4: 2015-04-01 | D4: 2016-04-01 | E4: 2017-04-01 | F4: 2018-04-01 | G4: 2019-04-01 | H4: 2020-04-01 | I4: 2021-04-01
A5: to | B5: 2015-03-31 | C5: 2016-03-31 | D5: 2017-03-31 | E5: 2018-03-31 | F5: 2019-03-31 | G5: 2020-03-31 | H5: 2021-03-31 | I5: 2022-03-31
A6: Buy back period (number of whole months) | B6: N/A | C6: 0 | D6: 0 | E6: 0 | F6: 0 | G6: 0 | H6: 0 | I6: 0
A7: Total pensionable pay (actual pensionable earnings) | B7: 0 | C7: 0 | D7: 0 | E7: 0 | F7: 0 | G7: 0 | H7: 0 | I7: 0
A8: Total taxable pay (all employments) | B8: N/A | C8: 0 | D8: 0 | E8: 0 | F8: 0 | G8: 0 | H8: 0 | I8: 0
A9: Whole or part time | B9: Whole | C9: Whole | D9: Whole | E9: Whole | F9: Whole | G9: Whole | H9: Whole | I9: Whole
A10: Number of hours per week (if part time) | B10: 0 | C10: 0 | D10: 0 | E10: 0 | F10: 0 | G10: 0 | H10: 0 | I10: 0
A11: Standard whole time hours per week (if part time) | B11: 0 | C11: 0 | D11: 0 | E11: 0 | F11: 0 | G11: 0 | H11: 0 | I11: 0 | CC11: 0
A13: Error indicator (1) | C13: =IF(C7>C8,"Error",0) -> 0 | D13: =IF(D7>D8,"Error",0) -> 0 | E13: 0 | F13: 0 | G13: 0 | H13: 0 | I13: 0
A14: Error indicator (2) | C14: =IF(C6>0,IF(B7=0,"Error",0),0) -> 0 | D14: 0 | E14: 0 | F14: 0 | G14: 0 | H14: 0 | I14: 0
A15: Percentage hours | B15: =IF(B9="Whole",1,IF(B10<=B11,B10/B11,"Error")) -> 1 | C15: 1 | D15: 1 | E15: 1 | F15: 1 | G15: 1 | H15: 1 | I15: 1
A16: Tax relief applied | B16: N/A | C16: =IF(C8<=Sheet2!$K$2,Sheet2!$K$1,IF(C8<=Sheet2!$L$2,Sheet2!$L$1,IF(C8<=Sheet2!$M$2,Sheet2!$M$1,Sheet2!$N$1))) -> 0 | D16: =IF(D8<=Sheet2!$K$3,Sheet2!$K$1,IF(D8<=Sheet2!$L$3,Sheet2!$L$1,IF(D8<=Sheet2!$M$3,Sheet2!$M$1,Sheet2!$N$1))) -> 0 | E16: =IF(E8<=Sheet2!$K$4,Sheet2!$K$1,IF(E8<=Sheet2!$L$4,Sheet2!$L$1,IF(E8<=Sheet2!$M$4,Sheet2!$M$1,Sheet2!$N$1))) -> 0 | F16: =IF(F8<=Sheet2!$K$5,Sheet2!$K$1,IF(F8<=Sheet2!$L$5,Sheet2!$L$1,IF(F8<=Sheet2!$M$5,Sheet2!$M$1,Sheet2!$N$1))) -> 0 | G16: =IF(G8<=Sheet2!$K$6,Sheet2!$K$1,IF(G8<=Sheet2!$L$6,Sheet2!$L$1,IF(G8<=Sheet2!$M$6,Sheet2!$M$1,Sheet2!$N$1))) -> 0 | H16: =IF(H8<=Sheet2!$K$7,Sheet2!$K$1,IF(H8<=Sheet2!$L$7,Sheet2!$L$1,IF(H8<=Sheet2!$M$7,Sheet2!$M$1,Sheet2!$N$1))) -> 0 | I16: =IF(I8<=Sheet2!$K$8,Sheet2!$K$1,IF(I8<=Sheet2!$L$8,Sheet2!$L$1,IF(I8<=Sheet2!$M$8,Sheet2!$M$1,Sheet2!$N$1))) -> 0
A17: Worked days | B17: =IF(B4<=B5,(B5-B4)+1,"Error") -> 365 | C17: =IF(C4<=C5,C5-C4,"Error") -> 365 | D17: =IF(D4<=D5,(D5-D4)+1,"Error") -> 365 | E17: =IF(E4<=E5,(E5-E4)+1,"Error") -> 365 | F17: =IF(F4<=F5,(F5-F4)+1,"Error") -> 365 | G17: =IF(G4<=G5,G5-G4,"Error") -> 365 | H17: =IF(H4<=H5,(H5-H4)+1,"Error") -> 365 | I17: =IF(I4<=I5,(I5-I4)+1,"Error") -> 365
A18: Annual whole time equivalent pay | B18: =B7*(100%/B15)*(365/B17) -> 0 | C18: 0 | D18: 0 | E18: 0 | F18: 0 | G18: 0 | H18: 0 | I18: 0
A19: Contribution rate (next year) | B19: =IF(B18<Sheet2!$E$3,Sheet2!$G$2,IF(B18<Sheet2!$E$4,Sheet2!$G$3,IF(B18<Sheet2!$E$5,Sheet2!$G$4,IF(B18<Sheet2!$E$6,Sheet2!$G$5,IF(B18<Sheet2!$E$7,Sheet2!$G$6,IF(B18<Sheet2!$E$8,Sheet2!$G$7,Sheet2!$G$8)))))) -> 0.05 | C19: =IF(C18<Sheet2!$E$3,Sheet2!$G$2,IF(C18<Sheet2!$E$4,Sheet2!$G$3,IF(C18<Sheet2!$E$5,Sheet2!$G$4,IF(C18<Sheet2!$E$6,Sheet2!$G$5,IF(C18<Sheet2!$E$7,Sheet2!$G$6,IF(C18<Sheet2!$E$8,Sheet2!$G$7,Sheet2!$G$8)))))) -> 0.05 | D19: =IF(D18<Sheet2!$E$3,Sheet2!$G$2,IF(D18<Sheet2!$E$4,Sheet2!$G$3,IF(D18<Sheet2!$E$5,Sheet2!$G$4,IF(D18<Sheet2!$E$6,Sheet2!$G$5,IF(D18<Sheet2!$E$7,Sheet2!$G$6,IF(D18<Sheet2!$E$8,Sheet2!$G$7,Sheet2!$G$8)))))) -> 0.05 | E19: =IF(E18<Sheet2!$E$3,Sheet2!$G$2,IF(E18<Sheet2!$E$4,Sheet2!$G$3,IF(E18<Sheet2!$E$5,Sheet2!$G$4,IF(E18<Sheet2!$E$6,Sheet2!$G$5,IF(E18<Sheet2!$E$7,Sheet2!$G$6,IF(E18<Sheet2!$E$8,Sheet2!$G$7,Sheet2!$G$8)))))) -> 0.05 | F19: =IF(F18<Sheet2!$E$3,Sheet2!$G$2,IF(F18<Sheet2!$E$4,Sheet2!$G$3,IF(F18<Sheet2!$E$5,Sheet2!$G$4,IF(F18<Sheet2!$E$6,Sheet2!$G$5,IF(F18<Sheet2!$E$7,Sheet2!$G$6,IF(F18<Sheet2!$E$8,Sheet2!$G$7,Sheet2!$G$8)))))) -> 0.05 | G19: =IF(G18<Sheet2!$E$3,Sheet2!$G$2,IF(G18<Sheet2!$E$4,Sheet2!$G$3,IF(G18<Sheet2!$E$5,Sheet2!$G$4,IF(G18<Sheet2!$E$6,Sheet2!$G$5,IF(G18<Sheet2!$E$7,Sheet2!$G$6,IF(G18<Sheet2!$E$8,Sheet2!$G$7,Sheet2!$G$8)))))) -> 0.05 | H19: =IF(H18<Sheet2!$E$3,Sheet2!$G$2,IF(H18<Sheet2!$E$4,Sheet2!$G$3,IF(H18<Sheet2!$E$5,Sheet2!$G$4,IF(H18<Sheet2!$E$6,Sheet2!$G$5,IF(H18<Sheet2!$E$7,Sheet2!$G$6,IF(H18<Sheet2!$E$8,Sheet2!$G$7,Sheet2!$G$8)))))) -> 0.05 | I19: =IF(I18<Sheet2!$E$3,Sheet2!$G$2,IF(I18<Sheet2!$E$4,Sheet2!$G$3,IF(I18<Sheet2!$E$5,Sheet2!$G$4,IF(I18<Sheet2!$E$6,Sheet2!$G$5,IF(I18<Sheet2!$E$7,Sheet2!$G$6,IF(I18<Sheet2!$E$8,Sheet2!$G$7,Sheet2!$G$8)))))) -> 0.05
A20: Date check | C20: =IF(C6*30>C17,"Error","") -> 
A21: Start date plus months | C21: =EDATE(C4,C6)-1 -> 2015-03-31 | D21: =EDATE(D4,D6)-1 -> 2016-03-31 | E21: 2017-03-31 | F21: 2018-03-31 | G21: 2019-03-31 | H21: 2020-03-31 | I21: 2021-03-31
A22: Mid point from scheme year employed | C22: =IF(C6<12,(C21-C4)/2+C4,(C5-C4)/2+C4) -> 2015-03-31T12:00:00 | D22: =IF(D6<12,(D21-D4)/2+D4,(D5-D4)/2+D4) -> 2016-03-31T12:00:00 | E22: =IF(E6<12,(E21-E4)/2+E4,(E5-E4)/2+E4) -> 2017-03-31T12:00:00 | F22: 2018-03-31T12:00:00 | G22: 2019-03-31T12:00:00 | H22: 2020-03-31T12:00:00 | I22: 2021-03-31T12:00:00
A23: Average interest rate from mid point | C23: =Sheet1!D21 -> 1.152487596 | D23: =Sheet1!F21 -> 1.13993963 | E23: =Sheet1!H21 -> 1.130286938 | F23: =Sheet1!J21 -> 1.121424527 | G23: =Sheet1!L21 -> 1.110605129 | H23: =Sheet1!N21 -> 1.099586572 | I23: =Sheet1!P21 -> 1.091923637
A24: Days interest | C24: =_xlfn.DAYS(Sheet2!$R$1,C22) -> 3655 | D24: =_xlfn.DAYS(Sheet2!$R$1,D22) -> 3289 | E24: =_xlfn.DAYS(Sheet2!$R$1,E22) -> 2924 | F24: =_xlfn.DAYS(Sheet2!$R$1,F22) -> 2559 | G24: =_xlfn.DAYS(Sheet2!$R$1,G22) -> 2194 | H24: =_xlfn.DAYS(Sheet2!$R$1,H22) -> 1828 | I24: =_xlfn.DAYS(Sheet2!$R$1,I22) -> 1463
A26: Gross underpayment | C26: =IF(B7=0,C18*(C6/12)*C15*C19,C18*(C6/12)*C15*B19) -> 0 | D26: 0 | E26: 0 | F26: 0 | G26: 0 | H26: 0 | I26: 0
A28: Taxable pay - Gross overpayment | C28: =C8-C26 -> 0 | D28: 0 | E28: 0 | F28: 0 | G28: 0 | H28: 0 | I28: 0
A29: Lower tax rate | C29: =IF(C28<=Sheet2!$K$2,Sheet2!$K$1,IF(C28<=Sheet2!$L$2,Sheet2!$L$1,IF(C28<=Sheet2!$M$2,Sheet2!$M$1,Sheet2!$N$1))) -> 0 | D29: =IF(D28<=Sheet2!$K$3,Sheet2!$K$1,IF(D28<=Sheet2!$L$3,Sheet2!$L$1,IF(D28<=Sheet2!$M$3,Sheet2!$M$1,Sheet2!$N$1))) -> 0 | E29: =IF(E28<=Sheet2!$K$4,Sheet2!$K$1,IF(E28<=Sheet2!$L$4,Sheet2!$L$1,IF(E28<=Sheet2!$M$4,Sheet2!$M$1,Sheet2!$N$1))) -> 0 | F29: =IF(F28<=Sheet2!$K$5,Sheet2!$K$1,IF(F28<=Sheet2!$L$5,Sheet2!$L$1,IF(F28<=Sheet2!$M$5,Sheet2!$M$1,Sheet2!$N$1))) -> 0 | G29: =IF(G28<=Sheet2!$K$6,Sheet2!$K$1,IF(G28<=Sheet2!$L$6,Sheet2!$L$1,IF(G28<=Sheet2!$M$6,Sheet2!$M$1,Sheet2!$N$1))) -> 0 | H29: =IF(H28<=Sheet2!$K$7,Sheet2!$K$1,IF(H28<=Sheet2!$L$7,Sheet2!$L$1,IF(H28<=Sheet2!$M$7,Sheet2!$M$1,Sheet2!$N$1))) -> 0 | I29: =IF(I28<=Sheet2!$K$8,Sheet2!$K$1,IF(I28<=Sheet2!$L$8,Sheet2!$L$1,IF(I28<=Sheet2!$M$8,Sheet2!$M$1,Sheet2!$N$1))) -> 0
A30: Amount at higher rate | C30: =IF(C16=C29,C26,IF(C8<=Sheet2!$K$2,C26,IF(C8<=Sheet2!$L$2,C8-Sheet2!$K$2,IF(C8<=Sheet2!$M$2,C8-Sheet2!$L$2,C8-Sheet2!$M$2)))) -> 0 | D30: =IF(D16=D29,D26,IF(D8<=Sheet2!$K$3,D26,IF(D8<=Sheet2!$L$3,D8-Sheet2!$K$3,IF(D8<=Sheet2!$M$3,D8-Sheet2!$L$3,D8-Sheet2!$M$3)))) -> 0 | E30: =IF(E16=E29,E26,IF(E8<=Sheet2!$K$4,E26,IF(E8<=Sheet2!$L$4,E8-Sheet2!$K$4,IF(E8<=Sheet2!$M$4,E8-Sheet2!$L$4,E8-Sheet2!$M$4)))) -> 0 | F30: =IF(F16=F29,F26,IF(F8<=Sheet2!$K$5,F26,IF(F8<=Sheet2!$L$5,F8-Sheet2!$K$5,IF(F8<=Sheet2!$M$5,F8-Sheet2!$L$5,F8-Sheet2!$M$5)))) -> 0 | G30: =IF(G16=G29,G26,IF(G8<=Sheet2!$K$6,G26,IF(G8<=Sheet2!$L$6,G8-Sheet2!$K$6,IF(G8<=Sheet2!$M$6,G8-Sheet2!$L$6,G8-Sheet2!$M$6)))) -> 0 | H30: =IF(H16=H29,H26,IF(H8<=Sheet2!$K$7,H26,IF(H8<=Sheet2!$L$7,H8-Sheet2!$K$7,IF(H8<=Sheet2!$M$7,H8-Sheet2!$L$7,H8-Sheet2!$M$7)))) -> 0 | I30: =IF(I16=I29,I26,IF(I8<=Sheet2!$K$8,I26,IF(I8<=Sheet2!$L$8,I8-Sheet2!$K$8,IF(I8<=Sheet2!$M$8,I8-Sheet2!$L$8,I8-Sheet2!$M$8)))) -> 0
A31: Amount at lower rate | C31: =C26-C30 -> 0 | D31: 0 | E31: 0 | F31: 0 | G31: 0 | H31: 0 | I31: 0
A32: Tax | C32: =(C30*C16)+(C31*C29) -> 0 | D32: 0 | E32: 0 | F32: 0 | G32: 0 | H32: 0 | I32: 0
A33: Net underpayment | B33: N/A | C33: =C26-C32 -> 0 | D33: 0 | E33: 0 | F33: 0 | G33: 0 | H33: 0 | I33: 0
A34: Interest | B34: N/A | C34: =C33*(C23-1) -> 0 | D34: =D33*(D23-1) -> 0 | E34: 0 | F34: 0 | G34: 0 | H34: 0 | I34: 0
A35: Employer contribution | C35: =C18*(C6/12)*C15*Sheet2!$P$2 -> 0 | D35: =D18*(D6/12)*D15*Sheet2!$P$2 -> 0 | E35: =E18*(E6/12)*E15*Sheet2!$P$2 -> 0 | F35: =F18*(F6/12)*F15*Sheet2!$P$2 -> 0 | G35: =G18*(G6/12)*G15*Sheet2!$P$3 -> 0 | H35: =H18*(H6/12)*H15*Sheet2!$P$3 -> 0 | I35: =I18*(I6/12)*I15*Sheet2!$P$3 -> 0
B37: Net cost to buy back opted out service | C37: =SUM(C33:I33) -> 0
B38: Interest | C38: =SUM(C34:I34) -> 0
B39: Total | C39: =C37+C38 -> 0
B41: =IF(C41="","","Error:") ->  | C41: =IF(OR(C14="Error",D14="Error",E14="Error",F14="Error",G14="Error",H14="Error",I14="Error"),"Please enter information for year prior to buy back period",IF(OR(B15="Error",C15="Error",D15="Error",E15="Error",F15="Error",G15="Error",H15="Error",I15="Error"),"Number of hours worked per week can not exceed whole time equivalent",IF(OR(B17="Error",C17="Error",D17="Error",E17="Error",F17="Error",G17="Error",H17="Error",I17="Error"),"Employed from date can not be later than employed to date",IF(OR(C20="Error",D20="Error",E20="Error",F20="Error",G20="Error",H20="Error",I20="Error"),"Cant buy back more service than employed during the year",IF(OR(C13="Error",D13="Error",E13="Error",F13="Error",G13="Error",H13="Error",I13="Error"),"Total Pensionable Pay can not be higher than Total Taxable Pay",""))))) -> 
B42: =IF(OR($B$7>250000,$C$7>250000,$D$7>250000,$E$7>250000,$F$7>250000,$G$7>250000,$H$7>250000,$I$7>250000),"Warning:","") ->  | C42: =IF(OR($B$7>250000,$C$7>250000,$D$7>250000,$E$7>250000,$F$7>250000,$G$7>250000,$H$7>250000,$I$7>250000),"Total Pensionable Pay exceeds £250,000","") -> 

Sheet Sheet2 (hidden)
A1: Whole | B1: 0 | D1: Tier | E1: Lower Pay | F1: Upper Pay | G1: Rate | K1: 0 | L1: 0.2 | M1: 0.4 | N1: 0.45 | P1: Employer Rate | Q1: =TODAY() -> 2025-03-05 | R1: =Q1+28 -> 2025-04-02
A2: Part | B2: 1 | D2: 1 | E2: 0 | F2: 15431.99 | G2: 0.05 | J2: 2015/16 | K2: 10600 | L2: 42385 | M2: 150000 | P2: 0.1438
B3: 2 | D3: 2 | E3: 15432 | F3: 21477.99 | G3: 0.056 | J3: 2016/17 | K3: 11000 | L3: 43000 | M3: 150000 | P3: 0.206
B4: 3 | D4: 3 | E4: 21478 | F4: 26823.99 | G4: 0.071 | J4: 2017/18 | K4: 11500 | L4: 45000 | M4: 150000
B5: 4 | D5: 4 | E5: 26824 | F5: 47846 | G5: 0.093 | J5: 2018/19 | K5: 11850 | L5: 46350 | M5: 150000
B6: 5 | D6: 5 | E6: 47846 | F6: 70630.99 | G6: 0.125 | J6: 2019/20 | K6: 12500 | L6: 50000 | M6: 150000
B7: 6 | D7: 6 | E7: 70631 | F7: 111376.99 | G7: 0.135 | J7: 2020/21 | K7: 12500 | L7: 50000 | M7: 150000
B8: 7 | D8: 7 | E8: 111377 | F8: 999999 | G8: 0.145 | J8: 2021/22 | K8: 12570 | L8: 50270 | M8: 150000
B9: 8
B10: 9
B11: 10
B12: 11
B13: 12

Sheet Sheet1 (hidden)
A1: Effective from | B1: NS&I Rate | C1: 2015/16 Days | D1: 2015/16 Rate | E1: 2016/17 Days | F1: 2016/17 Rate | G1: 2017/18 Days | H1: 2017/18 Rate | I1: 2018/19 Days | J1: 2018/19 Rate | K1: 2019/20 Days | L1: 2019/20 Rate | M1: 2020/21 Days | N1: 2020/21 Rate | O1: 2021/22 Days | P1: 2021/22 Rate | Q1: =TODAY() -> 2025-03-05 | R1: =Q1+28 -> 2025-04-02
A2: 2025-03-05 | B2: 1.033 | C2: =$R$1-$A$2 -> 28 | D2: =B2^(C2/365.25) -> 1.002492029 | E2: =$R$1-$A$2 -> 28 | F2: =B2^(E2/365.25) -> 1.002492029 | G2: =$R$1-$A$2 -> 28 | H2: =$B2^(G2/365.25) -> 1.002492029 | I2: =$R$1-$A$2 -> 28 | J2: =$B2^(I2/365.25) -> 1.002492029 | K2: =$R$1-$A$2 -> 28 | L2: =$B2^(K2/365.25) -> 1.002492029 | M2: =$R$1-$A$2 -> 28 | N2: =$B2^(M2/365.25) -> 1.002492029 | O2: =$R$1-$A$2 -> 28 | P2: =$B2^(O2/365.25) -> 1.002492029
A3: 2024-12-20 | B3: 1.035 | C3: =$A2-$A3 -> 75 | D3: =B3^(C3/365.25) -> 1.007088957 | E3: =$A2-$A3 -> 75 | F3: 1.007088957 | G3: =$A2-$A3 -> 75 | H3: =$B3^(G3/365.25) -> 1.007088957 | I3: =$A2-$A3 -> 75 | J3: =$B3^(I3/365.25) -> 1.007088957 | K3: =$A2-$A3 -> 75 | L3: =$B3^(K3/365.25) -> 1.007088957 | M3: =$A2-$A3 -> 75 | N3: =$B3^(M3/365.25) -> 1.007088957 | O3: =$A2-$A3 -> 75 | P3: =$B3^(O3/365.25) -> 1.007088957
A4: 2024-11-20 | B4: 1.0375 | C4: 30 | D4: 1.003028311 | E4: 30 | F4: 1.003028311 | G4: 30 | H4: 1.003028311 | I4: 30 | J4: 1.003028311 | K4: 30 | L4: 1.003028311 | M4: 30 | N4: 1.003028311 | O4: 30 | P4: 1.003028311
A5: 2024-05-23 | B5: 1.04 | C5: 181 | D5: 1.019625969 | E5: 181 | F5: 1.019625969 | G5: 181 | H5: 1.019625969 | I5: 181 | J5: 1.019625969 | K5: 181 | L5: 1.019625969 | M5: 181 | N5: 1.019625969 | O5: 181 | P5: 1.019625969
A6: 2023-08-18 | B6: 1.0365 | C6: =$A5-$A6 -> 279 | D6: =B6^(C6/365.25) -> 1.02776252 | E6: =$A5-$A6 -> 279 | F6: =B6^(E6/365.25) -> 1.02776252 | G6: =$A5-$A6 -> 279 | H6: =$B6^(G6/365.25) -> 1.02776252 | I6: =$A5-$A6 -> 279 | J6: =$B6^(I6/365.25) -> 1.02776252 | K6: =$A5-$A6 -> 279 | L6: =$B6^(K6/365.25) -> 1.02776252 | M6: =$A5-$A6 -> 279 | N6: =$B6^(M6/365.25) -> 1.02776252 | O6: 279 | P6: =$B6^(O6/365.25) -> 1.02776252
A7: 2023-06-13 | B7: 1.034 | C7: =$A6-$A7 -> 66 | D7: 1.00605989 | E7: =$A6-$A7 -> 66 | F7: 1.00605989 | G7: =$A6-$A7 -> 66 | H7: 1.00605989 | I7: =$A6-$A7 -> 66 | J7: 1.00605989 | K7: =$A6-$A7 -> 66 | L7: 1.00605989 | M7: =$A6-$A7 -> 66 | N7: 1.00605989 | O7: 66 | P7: 1.00605989
A8: 2023-02-14 | B8: 1.0285 | C8: =$A7-$A8 -> 119 | D8: =B8^(C8/365.25) -> 1.009197606 | E8: 119 | F8: 1.009197606 | G8: 119 | H8: =$B8^(G8/365.25) -> 1.009197606 | I8: 119 | J8: =$B8^(I8/365.25) -> 1.009197606 | K8: 119 | L8: =$B8^(K8/365.25) -> 1.009197606 | M8: 119 | N8: =$B8^(M8/365.25) -> 1.009197606 | O8: =$A7-$A8 -> 119 | P8: =$B8^(O8/365.25) -> 1.009197606
A9: 2023-01-24 | B9: 1.026 | C9: 21 | D9: 1.001476853 | E9: 21 | F9: 1.001476853 | G9: 21 | H9: 1.001476853 | I9: 21 | J9: 1.001476853 | K9: 21 | L9: 1.001476853 | M9: 21 | N9: 1.001476853 | O9: =$A8-$A9 -> 21 | P9: 1.001476853
A10: 2022-12-13 | B10: 1.023 | C10: 42 | D10: 1.002618229 | E10: 42 | F10: 1.002618229 | G10: 42 | H10: 1.002618229 | I10: 42 | J10: 1.002618229 | K10: 42 | L10: 1.002618229 | M10: 42 | N10: 1.002618229 | O10: =$A9-$A10 -> 42 | P10: 1.002618229
A11: 2022-10-25 | B11: 1.018 | C11: =$A10-$A11 -> 49 | D11: 1.002396175 | E11: =$A10-$A11 -> 49 | F11: 1.002396175 | G11: =$A10-$A11 -> 49 | H11: 1.002396175 | I11: =$A10-$A11 -> 49 | J11: 1.002396175 | K11: =$A10-$A11 -> 49 | L11: 1.002396175 | M11: =$A10-$A11 -> 49 | N11: 1.002396175 | O11: =$A10-$A11 -> 49 | P11: 1.002396175
A12: 2022-07-21 | B12: 1.012 | C12: =IF(Officer!$C$22<A11,IF(Officer!$C$22>A12,A11-Officer!$C$22,A11-A12),0) -> 96 | D12: 1.00314015 | E12: =IF(Officer!$D$22<A11,IF(Officer!$D$22>A12,A11-Officer!$D$22,A11-A12),0) -> 96 | F12: 1.00314015 | G12: =IF(Officer!$E$22<A11,IF(Officer!$E$22>A12,A11-Officer!$E$22,A11-A12),0) -> 96 | H12: 1.00314015 | I12: =IF(Officer!$F$22<A11,IF(Officer!$F$22>A12,A11-Officer!$F$22,A11-A12),0) -> 96 | J12: 1.00314015 | K12: =IF(Officer!$G$22<A11,IF(Officer!$G$22>A12,A11-Officer!$G$22,A11-A12),0) -> 96 | L12: 1.00314015 | M12: =IF(Officer!$H$22<A11,IF(Officer!$H$22>A12,A11-Officer!$H$22,A11-A12),0) -> 96 | N12: 1.00314015 | O12: =IF(Officer!$I$22<A11,IF(Officer!$I$22>A12,A11-Officer!$I$22,A11-A12),0) -> 96 | P12: 1.00314015
A13: 2022-02-10 | B13: 1.005 | C13: =IF(Officer!$C$22<A12,IF(Officer!$C$22>A13,A12-Officer!$C$22,A12-A13),0) -> 161 | D13: 1.002200897 | E13: =IF(Officer!$D$22<A12,IF(Officer!$D$22>A13,A12-Officer!$D$22,A12-A13),0) -> 161 | F13: 1.002200897 | G13: =IF(Officer!$E$22<A12,IF(Officer!$E$22>A13,A12-Officer!$E$22,A12-A13),0) -> 161 | H13: 1.002200897 | I13: =IF(Officer!$F$22<A12,IF(Officer!$F$22>A13,A12-Officer!$F$22,A12-A13),0) -> 161 | J13: 1.002200897 | K13: =IF(Officer!$G$22<A12,IF(Officer!$G$22>A13,A12-Officer!$G$22,A12-A13),0) -> 161 | L13: 1.002200897 | M13: =IF(Officer!$H$22<A12,IF(Officer!$H$22>A13,A12-Officer!$H$22,A12-A13),0) -> 161 | N13: 1.002200897 | O13: =IF(Officer!$I$22<A12,IF(Officer!$I$22>A13,A12-Officer!$I$22,A12-A13),0) -> 161 | P13: 1.002200897
A14: 2021-12-29 | B14: 1.0035 | C14: =IF(Officer!$C$22<A13,IF(Officer!$C$22>A14,A13-Officer!$C$22,A13-A14),0) -> 43 | D14: 1.000411412 | E14: =IF(Officer!$D$22<A13,IF(Officer!$D$22>A14,A13-Officer!$D$22,A13-A14),0) -> 43 | F14: 1.000411412 | G14: =IF(Officer!$E$22<A13,IF(Officer!$E$22>A14,A13-Officer!$E$22,A13-A14),0) -> 43 | H14: 1.000411412 | I14: =IF(Officer!$F$22<A13,IF(Officer!$F$22>A14,A13-Officer!$F$22,A13-A14),0) -> 43 | J14: 1.000411412 | K14: =IF(Officer!$G$22<A13,IF(Officer!$G$22>A14,A13-Officer!$G$22,A13-A14),0) -> 43 | L14: 1.000411412 | M14: =IF(Officer!$H$22<A13,IF(Officer!$H$22>A14,A13-Officer!$H$22,A13-A14),0) -> 43 | N14: 1.000411412 | O14: =IF(Officer!$I$22<A13,IF(Officer!$I$22>A14,A13-Officer!$I$22,A13-A14),0) -> 43 | P14: 1.000411412
A15: 2020-11-24 | B15: 1.0015 | C15: =IF(Officer!$C$22<A14,IF(Officer!$C$22>A15,A14-Officer!$C$22,A14-A15),0) -> 400 | D15: 1.001642828 | E15: =IF(Officer!$D$22<A14,IF(Officer!$D$22>A15,A14-Officer!$D$22,A14-A15),0) -> 400 | F15: 1.001642828 | G15: =IF(Officer!$E$22<A14,IF(Officer!$E$22>A15,A14-Officer!$E$22,A14-A15),0) -> 400 | H15: 1.001642828 | I15: =IF(Officer!$F$22<A14,IF(Officer!$F$22>A15,A14-Officer!$F$22,A14-A15),0) -> 400 | J15: 1.001642828 | K15: =IF(Officer!$G$22<A14,IF(Officer!$G$22>A15,A14-Officer!$G$22,A14-A15),0) -> 400 | L15: 1.001642828 | M15: =IF(Officer!$H$22<A14,IF(Officer!$H$22>A15,A14-Officer!$H$22,A14-A15),0) -> 400 | N15: 1.001642828 | O15: =IF(Officer!$I$22<A14,IF(Officer!$I$22>A15,A14-Officer!$I$22,A14-A15),0) -> 272.5 | P15: 1.001118884
A16: 2018-10-01 | B16: 1.01 | C16: =IF(Officer!$C$22<A15,IF(Officer!$C$22>A16,A15-Officer!$C$22,A15-A16),0) -> 785 | D16: 1.021615685 | E16: =IF(Officer!$D$22<A15,IF(Officer!$D$22>A16,A15-Officer!$D$22,A15-A16),0) -> 785 | F16: 1.021615685 | G16: =IF(Officer!$E$22<A15,IF(Officer!$E$22>A16,A15-Officer!$E$22,A15-A16),0) -> 785 | H16: 1.021615685 | I16: =IF(Officer!$F$22<A15,IF(Officer!$F$22>A16,A15-Officer!$F$22,A15-A16),0) -> 785 | J16: 1.021615685 | K16: =IF(Officer!$G$22<A15,IF(Officer!$G$22>A16,A15-Officer!$G$22,A15-A16),0) -> 603.5 | L16: 1.016576756 | M16: =IF(Officer!$H$22<A15,IF(Officer!$H$22>A16,A15-Officer!$H$22,A15-A16),0) -> 237.5 | N16: 1.006491075 | O16: =IF(Officer!$I$22<A15,IF(Officer!$I$22>A16,A15-Officer!$I$22,A15-A16),0) -> 0 | P16: 1
A17: 2017-12-01 | B17: 1.0095 | C17: =IF(Officer!$C$22<A16,IF(Officer!$C$22>A17,A16-Officer!$C$22,A16-A17),0) -> 304 | D17: 1.007900638 | E17: =IF(Officer!$D$22<A16,IF(Officer!$D$22>A17,A16-Officer!$D$22,A16-A17),0) -> 304 | F17: 1.007900638 | G17: =IF(Officer!$E$22<A16,IF(Officer!$E$22>A17,A16-Officer!$E$22,A16-A17),0) -> 304 | H17: 1.007900638 | I17: =IF(Officer!$F$22<A16,IF(Officer!$F$22>A17,A16-Officer!$F$22,A16-A17),0) -> 183.5 | J17: 1.004761531 | K17: =IF(Officer!$G$22<A16,IF(Officer!$G$22>A17,A16-Officer!$G$22,A16-A17),0) -> 0 | L17: 1 | M17: =IF(Officer!$H$22<A16,IF(Officer!$H$22>A17,A16-Officer!$H$22,A16-A17),0) -> 0 | N17: 1 | O17: =IF(Officer!$I$22<A16,IF(Officer!$I$22>A17,A16-Officer!$I$22,A16-A17),0) -> 0 | P17: 1
A18: 2017-05-01 | B18: 1.007 | C18: =IF(Officer!$C$22<A17,IF(Officer!$C$22>A18,A17-Officer!$C$22,A17-A18),0) -> 214 | D18: 1.004095376 | E18: =IF(Officer!$D$22<A17,IF(Officer!$D$22>A18,A17-Officer!$D$22,A17-A18),0) -> 214 | F18: 1.004095376 | G18: =IF(Officer!$E$22<A17,IF(Officer!$E$22>A18,A17-Officer!$E$22,A17-A18),0) -> 214 | H18: 1.004095376 | I18: =IF(Officer!$F$22<A17,IF(Officer!$F$22>A18,A17-Officer!$F$22,A17-A18),0) -> 0 | J18: 1 | K18: =IF(Officer!$G$22<A17,IF(Officer!$G$22>A18,A17-Officer!$G$22,A17-A18),0) -> 0 | L18: 1 | M18: =IF(Officer!$H$22<A17,IF(Officer!$H$22>A18,A17-Officer!$H$22,A17-A18),0) -> 0 | N18: 1 | O18: =IF(Officer!$I$22<A17,IF(Officer!$I$22>A18,A17-Officer!$I$22,A17-A18),0) -> 0 | P18: 1
A19: 2016-06-06 | B19: 1.008 | C19: =IF(Officer!$C$22<A18,IF(Officer!$C$22>A19,A18-Officer!$C$22,A18-A19),0) -> 329 | D19: 1.007203171 | E19: =IF(Officer!$D$22<A18,IF(Officer!$D$22>A19,A18-Officer!$D$22,A18-A19),0) -> 329 | F19: 1.007203171 | G19: =IF(Officer!$E$22<A18,IF(Officer!$E$22>A19,A18-Officer!$E$22,A18-A19),0) -> 30.5 | H19: 1.000665599 | I19: =IF(Officer!$F$22<A18,IF(Officer!$F$22>A19,A18-Officer!$F$22,A18-A19),0) -> 0 | J19: 1 | K19: =IF(Officer!$G$22<A18,IF(Officer!$G$22>A19,A18-Officer!$G$22,A18-A19),0) -> 0 | L19: 1 | M19: =IF(Officer!$H$22<A18,IF(Officer!$H$22>A19,A18-Officer!$H$22,A18-A19),0) -> 0 | N19: 1 | O19: =IF(Officer!$I$22<A18,IF(Officer!$I$22>A19,A18-Officer!$I$22,A18-A19),0) -> 0 | P19: 1
A20: 2015-04-01 | B20: 1.011 | C20: =IF(Officer!$C$22<A19,IF(Officer!$C$22>A20,A19-Officer!$C$22,A19-A20),0) -> 432 | D20: 1.013023305 | E20: =IF(Officer!$D$22<A19,IF(Officer!$D$22>A20,A19-Officer!$D$22,A19-A20),0) -> 66.5 | F20: 1.001993788 | G20: =IF(Officer!$E$22<A19,IF(Officer!$E$22>A20,A19-Officer!$E$22,A19-A20),0) -> 0 | H20: 1 | I20: =IF(Officer!$F$22<A19,IF(Officer!$F$22>A20,A19-Officer!$F$22,A19-A20),0) -> 0 | J20: 1 | K20: =IF(Officer!$G$22<A19,IF(Officer!$G$22>A20,A19-Officer!$G$22,A19-A20),0) -> 0 | L20: 1 | M20: =IF(Officer!$H$22<A19,IF(Officer!$H$22>A20,A19-Officer!$H$22,A19-A20),0) -> 0 | N20: 1 | O20: =IF(Officer!$I$22<A19,IF(Officer!$I$22>A20,A19-Officer!$I$22,A19-A20),0) -> 0 | P20: 1
D21: =D2*D3*D4*D5*D6*D7*D8*D9*D10*D11*D12*D13*D14*D15*D16*D17*D18*D19*D20 -> 1.152487596 | F21: =F2*F3*F4*F5*F6*F7*F8*F9*F10*F11*F12*F13*F14*F15*F16*F17*F18*F19*F20 -> 1.13993963 | H21: 1.130286938 | J21: 1.121424527 | L21: 1.110605129 | N21: 1.099586572 | P21: 1.091923637
